{"text_format":"3","workbook":"xlsx","n_sheets":3,"sheets":["日程","数据输入","Name Lookup"],"not_rendered":{"defined_names":5},"read":"whole","date_system":"1900"}

{"sheet":"日程","index":0,"n_rows":23,"n_cols":9,"rows_kept":23,"merged":[[1,1,2,3]]}
[]
[null,"每日日程安排",{"$nulls":4},"周： ","显示以下人员的日程安排： "]
[{"$nulls":5},{"$f":"WEEKDAY(WeekOf,1)","v":3},"2012-07-03","道明"]
[null,null,{"$f":"$F$3=COLUMN(A$1)","v":false},{"$f":"$F$3=COLUMN(B$1)","v":false},true,false,false,false,false]
[null,null,{"$f":"COLUMN(A$1)-MATCH(TRUE,$C$4:$I$4,0)+WeekOf+1","v":"2012-07-02"},"2012-07-03","2012-07-04","2012-07-05","2012-07-06","2012-07-07","2012-07-08"]
[null,"时间","星期一","星期二","星期三","星期四","星期五","星期六","星期日"]
[null,"06:00:00",{"$f":"IFERROR(INDEX(tblData[],MATCH(C$5+$B7&ShowName,tblData[日期和时间]&tblData[人员],0),3),\"\")","v":""},{"$f":"IFERROR(INDEX(tblData[],MATCH(D$5+$B7&ShowName,tblData[日期和时间]&tblData[人员],0),3),\"\")","v":""},{"$f":"IFERROR(INDEX(tblData[],MATCH(E$5+$B7&ShowName,tblData[日期和时间]&tblData[人员],0),3),\"\")","v":""},{"$f":"IFERROR(INDEX(tblData[],MATCH(F$5+$B7&ShowName,tblData[日期和时间]&tblData[人员],0),3),\"\")","v":""},{"$f":"IFERROR(INDEX(tblData[],MATCH(G$5+$B7&ShowName,tblData[日期和时间]&tblData[人员],0),3),\"\")","v":""},{"$f":"IFERROR(INDEX(tblData[],MATCH(H$5+$B7&ShowName,tblData[日期和时间]&tblData[人员],0),3),\"\")","v":""},{"$f":"IFERROR(INDEX(tblData[],MATCH(I$5+$B7&ShowName,tblData[日期和时间]&tblData[人员],0),3),\"\")","v":""}]
[null,"07:00:00",{"$f":"IFERROR(INDEX(tblData[],MATCH(C$5+$B8&ShowName,tblData[日期和时间]&tblData[人员],0),3),\"\")","v":""},{"$f":"IFERROR(INDEX(tblData[],MATCH(D$5+$B8&ShowName,tblData[日期和时间]&tblData[人员],0),3),\"\")","v":""},{"$f":"IFERROR(INDEX(tblData[],MATCH(E$5+$B8&ShowName,tblData[日期和时间]&tblData[人员],0),3),\"\")","v":""},{"$f":"IFERROR(INDEX(tblData[],MATCH(F$5+$B8&ShowName,tblData[日期和时间]&tblData[人员],0),3),\"\")","v":""},{"$f":"IFERROR(INDEX(tblData[],MATCH(G$5+$B8&ShowName,tblData[日期和时间]&tblData[人员],0),3),\"\")","v":""},{"$f":"IFERROR(INDEX(tblData[],MATCH(H$5+$B8&ShowName,tblData[日期和时间]&tblData[人员],0),3),\"\")","v":""},{"$f":"IFERROR(INDEX(tblData[],MATCH(I$5+$B8&ShowName,tblData[日期和时间]&tblData[人员],0),3),\"\")","v":""}]
[null,"08:00:00",{"$f":"IFERROR(INDEX(tblData[],MATCH(C$5+$B9&ShowName,tblData[日期和时间]&tblData[人员],0),3),\"\")","v":""},{"$f":"IFERROR(INDEX(tblData[],MATCH(D$5+$B9&ShowName,tblData[日期和时间]&tblData[人员],0),3),\"\")","v":""},{"$f":"IFERROR(INDEX(tblData[],MATCH(E$5+$B9&ShowName,tblData[日期和时间]&tblData[人员],0),3),\"\")","v":""},{"$f":"IFERROR(INDEX(tblData[],MATCH(F$5+$B9&ShowName,tblData[日期和时间]&tblData[人员],0),3),\"\")","v":""},{"$f":"IFERROR(INDEX(tblData[],MATCH(G$5+$B9&ShowName,tblData[日期和时间]&tblData[人员],0),3),\"\")","v":""},{"$f":"IFERROR(INDEX(tblData[],MATCH(H$5+$B9&ShowName,tblData[日期和时间]&tblData[人员],0),3),\"\")","v":""},{"$f":"IFERROR(INDEX(tblData[],MATCH(I$5+$B9&ShowName,tblData[日期和时间]&tblData[人员],0),3),\"\")","v":""}]
[null,"09:00:00",{"$f":"IFERROR(INDEX(tblData[],MATCH(C$5+$B10&ShowName,tblData[日期和时间]&tblData[人员],0),3),\"\")","v":""},{"$f":"IFERROR(INDEX(tblData[],MATCH(D$5+$B10&ShowName,tblData[日期和时间]&tblData[人员],0),3),\"\")","v":""},{"$f":"IFERROR(INDEX(tblData[],MATCH(E$5+$B10&ShowName,tblData[日期和时间]&tblData[人员],0),3),\"\")","v":""},{"$f":"IFERROR(INDEX(tblData[],MATCH(F$5+$B10&ShowName,tblData[日期和时间]&tblData[人员],0),3),\"\")","v":""},{"$f":"IFERROR(INDEX(tblData[],MATCH(G$5+$B10&ShowName,tblData[日期和时间]&tblData[人员],0),3),\"\")","v":""},{"$f":"IFERROR(INDEX(tblData[],MATCH(H$5+$B10&ShowName,tblData[日期和时间]&tblData[人员],0),3),\"\")","v":""},{"$f":"IFERROR(INDEX(tblData[],MATCH(I$5+$B10&ShowName,tblData[日期和时间]&tblData[人员],0),3),\"\")","v":""}]
[null,"10:00:00",{"$f":"IFERROR(INDEX(tblData[],MATCH(C$5+$B11&ShowName,tblData[日期和时间]&tblData[人员],0),3),\"\")","v":""},{"$f":"IFERROR(INDEX(tblData[],MATCH(D$5+$B11&ShowName,tblData[日期和时间]&tblData[人员],0),3),\"\")","v":""},{"$f":"IFERROR(INDEX(tblData[],MATCH(E$5+$B11&ShowName,tblData[日期和时间]&tblData[人员],0),3),\"\")","v":"闹市区游行"},{"$f":"IFERROR(INDEX(tblData[],MATCH(F$5+$B11&ShowName,tblData[日期和时间]&tblData[人员],0),3),\"\")","v":""},{"$f":"IFERROR(INDEX(tblData[],MATCH(G$5+$B11&ShowName,tblData[日期和时间]&tblData[人员],0),3),\"\")","v":""},{"$f":"IFERROR(INDEX(tblData[],MATCH(H$5+$B11&ShowName,tblData[日期和时间]&tblData[人员],0),3),\"\")","v":""},{"$f":"IFERROR(INDEX(tblData[],MATCH(I$5+$B11&ShowName,tblData[日期和时间]&tblData[人员],0),3),\"\")","v":""}]
[null,"11:00:00",{"$f":"IFERROR(INDEX(tblData[],MATCH(C$5+$B12&ShowName,tblData[日期和时间]&tblData[人员],0),3),\"\")","v":""},{"$f":"IFERROR(INDEX(tblData[],MATCH(D$5+$B12&ShowName,tblData[日期和时间]&tblData[人员],0),3),\"\")","v":""},{"$f":"IFERROR(INDEX(tblData[],MATCH(E$5+$B12&ShowName,tblData[日期和时间]&tblData[人员],0),3),\"\")","v":""},{"$f":"IFERROR(INDEX(tblData[],MATCH(F$5+$B12&ShowName,tblData[日期和时间]&tblData[人员],0),3),\"\")","v":""},{"$f":"IFERROR(INDEX(tblData[],MATCH(G$5+$B12&ShowName,tblData[日期和时间]&tblData[人员],0),3),\"\")","v":"和家人一起烤肉"},{"$f":"IFERROR(INDEX(tblData[],MATCH(H$5+$B12&ShowName,tblData[日期和时间]&tblData[人员],0),3),\"\")","v":""},{"$f":"IFERROR(INDEX(tblData[],MATCH(I$5+$B12&ShowName,tblData[日期和时间]&tblData[人员],0),3),\"\")","v":""}]
[null,"12:00:00",{"$f":"IFERROR(INDEX(tblData[],MATCH(C$5+$B13&ShowName,tblData[日期和时间]&tblData[人员],0),3),\"\")","v":""},{"$f":"IFERROR(INDEX(tblData[],MATCH(D$5+$B13&ShowName,tblData[日期和时间]&tblData[人员],0),3),\"\")","v":""},{"$f":"IFERROR(INDEX(tblData[],MATCH(E$5+$B13&ShowName,tblData[日期和时间]&tblData[人员],0),3),\"\")","v":""},{"$f":"IFERROR(INDEX(tblData[],MATCH(F$5+$B13&ShowName,tblData[日期和时间]&tblData[人员],0),3),\"\")","v":""},{"$f":"IFERROR(INDEX(tblData[],MATCH(G$5+$B13&ShowName,tblData[日期和时间]&tblData[人员],0),3),\"\")","v":""},{"$f":"IFERROR(INDEX(tblData[],MATCH(H$5+$B13&ShowName,tblData[日期和时间]&tblData[人员],0),3),\"\")","v":""},{"$f":"IFERROR(INDEX(tblData[],MATCH(I$5+$B13&ShowName,tblData[日期和时间]&tblData[人员],0),3),\"\")","v":""}]
[null,"13:00:00",{"$f":"IFERROR(INDEX(tblData[],MATCH(C$5+$B14&ShowName,tblData[日期和时间]&tblData[人员],0),3),\"\")","v":""},{"$f":"IFERROR(INDEX(tblData[],MATCH(D$5+$B14&ShowName,tblData[日期和时间]&tblData[人员],0),3),\"\")","v":""},{"$f":"IFERROR(INDEX(tblData[],MATCH(E$5+$B14&ShowName,tblData[日期和时间]&tblData[人员],0),3),\"\")","v":""},{"$f":"IFERROR(INDEX(tblData[],MATCH(F$5+$B14&ShowName,tblData[日期和时间]&tblData[人员],0),3),\"\")","v":""},{"$f":"IFERROR(INDEX(tblData[],MATCH(G$5+$B14&ShowName,tblData[日期和时间]&tblData[人员],0),3),\"\")","v":""},{"$f":"IFERROR(INDEX(tblData[],MATCH(H$5+$B14&ShowName,tblData[日期和时间]&tblData[人员],0),3),\"\")","v":""},{"$f":"IFERROR(INDEX(tblData[],MATCH(I$5+$B14&ShowName,tblData[日期和时间]&tblData[人员],0),3),\"\")","v":""}]
[null,"14:00:00",{"$f":"IFERROR(INDEX(tblData[],MATCH(C$5+$B15&ShowName,tblData[日期和时间]&tblData[人员],0),3),\"\")","v":""},{"$f":"IFERROR(INDEX(tblData[],MATCH(D$5+$B15&ShowName,tblData[日期和时间]&tblData[人员],0),3),\"\")","v":""},{"$f":"IFERROR(INDEX(tblData[],MATCH(E$5+$B15&ShowName,tblData[日期和时间]&tblData[人员],0),3),\"\")","v":""},{"$f":"IFERROR(INDEX(tblData[],MATCH(F$5+$B15&ShowName,tblData[日期和时间]&tblData[人员],0),3),\"\")","v":""},{"$f":"IFERROR(INDEX(tblData[],MATCH(G$5+$B15&ShowName,tblData[日期和时间]&tblData[人员],0),3),\"\")","v":""},{"$f":"IFERROR(INDEX(tblData[],MATCH(H$5+$B15&ShowName,tblData[日期和时间]&tblData[人员],0),3),\"\")","v":""},{"$f":"IFERROR(INDEX(tblData[],MATCH(I$5+$B15&ShowName,tblData[日期和时间]&tblData[人员],0),3),\"\")","v":""}]
[null,"15:00:00",{"$f":"IFERROR(INDEX(tblData[],MATCH(C$5+$B16&ShowName,tblData[日期和时间]&tblData[人员],0),3),\"\")","v":""},{"$f":"IFERROR(INDEX(tblData[],MATCH(D$5+$B16&ShowName,tblData[日期和时间]&tblData[人员],0),3),\"\")","v":""},{"$f":"IFERROR(INDEX(tblData[],MATCH(E$5+$B16&ShowName,tblData[日期和时间]&tblData[人员],0),3),\"\")","v":""},{"$f":"IFERROR(INDEX(tblData[],MATCH(F$5+$B16&ShowName,tblData[日期和时间]&tblData[人员],0),3),\"\")","v":""},{"$f":"IFERROR(INDEX(tblData[],MATCH(G$5+$B16&ShowName,tblData[日期和时间]&tblData[人员],0),3),\"\")","v":""},{"$f":"IFERROR(INDEX(tblData[],MATCH(H$5+$B16&ShowName,tblData[日期和时间]&tblData[人员],0),3),\"\")","v":""},{"$f":"IFERROR(INDEX(tblData[],MATCH(I$5+$B16&ShowName,tblData[日期和时间]&tblData[人员],0),3),\"\")","v":""}]
[null,"16:00:00",{"$f":"IFERROR(INDEX(tblData[],MATCH(C$5+$B17&ShowName,tblData[日期和时间]&tblData[人员],0),3),\"\")","v":""},{"$f":"IFERROR(INDEX(tblData[],MATCH(D$5+$B17&ShowName,tblData[日期和时间]&tblData[人员],0),3),\"\")","v":"出发去船舱"},{"$f":"IFERROR(INDEX(tblData[],MATCH(E$5+$B17&ShowName,tblData[日期和时间]&tblData[人员],0),3),\"\")","v":""},{"$f":"IFERROR(INDEX(tblData[],MATCH(F$5+$B17&ShowName,tblData[日期和时间]&tblData[人员],0),3),\"\")","v":""},{"$f":"IFERROR(INDEX(tblData[],MATCH(G$5+$B17&ShowName,tblData[日期和时间]&tblData[人员],0),3),\"\")","v":""},{"$f":"IFERROR(INDEX(tblData[],MATCH(H$5+$B17&ShowName,tblData[日期和时间]&tblData[人员],0),3),\"\")","v":""},{"$f":"IFERROR(INDEX(tblData[],MATCH(I$5+$B17&ShowName,tblData[日期和时间]&tblData[人员],0),3),\"\")","v":""}]
[null,"17:00:00",{"$f":"IFERROR(INDEX(tblData[],MATCH(C$5+$B18&ShowName,tblData[日期和时间]&tblData[人员],0),3),\"\")","v":""},{"$f":"IFERROR(INDEX(tblData[],MATCH(D$5+$B18&ShowName,tblData[日期和时间]&tblData[人员],0),3),\"\")","v":""},{"$f":"IFERROR(INDEX(tblData[],MATCH(E$5+$B18&ShowName,tblData[日期和时间]&tblData[人员],0),3),\"\")","v":""},{"$f":"IFERROR(INDEX(tblData[],MATCH(F$5+$B18&ShowName,tblData[日期和时间]&tblData[人员],0),3),\"\")","v":""},{"$f":"IFERROR(INDEX(tblData[],MATCH(G$5+$B18&ShowName,tblData[日期和时间]&tblData[人员],0),3),\"\")","v":""},{"$f":"IFERROR(INDEX(tblData[],MATCH(H$5+$B18&ShowName,tblData[日期和时间]&tblData[人员],0),3),\"\")","v":""},{"$f":"IFERROR(INDEX(tblData[],MATCH(I$5+$B18&ShowName,tblData[日期和时间]&tblData[人员],0),3),\"\")","v":"回家"}]
[null,"18:00:00",{"$f":"IFERROR(INDEX(tblData[],MATCH(C$5+$B19&ShowName,tblData[日期和时间]&tblData[人员],0),3),\"\")","v":"吃药"},{"$f":"IFERROR(INDEX(tblData[],MATCH(D$5+$B19&ShowName,tblData[日期和时间]&tblData[人员],0),3),\"\")","v":""},{"$f":"IFERROR(INDEX(tblData[],MATCH(E$5+$B19&ShowName,tblData[日期和时间]&tblData[人员],0),3),\"\")","v":""},{"$f":"IFERROR(INDEX(tblData[],MATCH(F$5+$B19&ShowName,tblData[日期和时间]&tblData[人员],0),3),\"\")","v":""},{"$f":"IFERROR(INDEX(tblData[],MATCH(G$5+$B19&ShowName,tblData[日期和时间]&tblData[人员],0),3),\"\")","v":""},{"$f":"IFERROR(INDEX(tblData[],MATCH(H$5+$B19&ShowName,tblData[日期和时间]&tblData[人员],0),3),\"\")","v":""},{"$f":"IFERROR(INDEX(tblData[],MATCH(I$5+$B19&ShowName,tblData[日期和时间]&tblData[人员],0),3),\"\")","v":""}]
[null,"19:00:00",{"$f":"IFERROR(INDEX(tblData[],MATCH(C$5+$B20&ShowName,tblData[日期和时间]&tblData[人员],0),3),\"\")","v":""},{"$f":"IFERROR(INDEX(tblData[],MATCH(D$5+$B20&ShowName,tblData[日期和时间]&tblData[人员],0),3),\"\")","v":""},{"$f":"IFERROR(INDEX(tblData[],MATCH(E$5+$B20&ShowName,tblData[日期和时间]&tblData[人员],0),3),\"\")","v":""},{"$f":"IFERROR(INDEX(tblData[],MATCH(F$5+$B20&ShowName,tblData[日期和时间]&tblData[人员],0),3),\"\")","v":""},{"$f":"IFERROR(INDEX(tblData[],MATCH(G$5+$B20&ShowName,tblData[日期和时间]&tblData[人员],0),3),\"\")","v":""},{"$f":"IFERROR(INDEX(tblData[],MATCH(H$5+$B20&ShowName,tblData[日期和时间]&tblData[人员],0),3),\"\")","v":""},{"$f":"IFERROR(INDEX(tblData[],MATCH(I$5+$B20&ShowName,tblData[日期和时间]&tblData[人员],0),3),\"\")","v":""}]
[null,"20:00:00",{"$f":"IFERROR(INDEX(tblData[],MATCH(C$5+$B21&ShowName,tblData[日期和时间]&tblData[人员],0),3),\"\")","v":"与家人一起看电影"},{"$f":"IFERROR(INDEX(tblData[],MATCH(D$5+$B21&ShowName,tblData[日期和时间]&tblData[人员],0),3),\"\")","v":""},{"$f":"IFERROR(INDEX(tblData[],MATCH(E$5+$B21&ShowName,tblData[日期和时间]&tblData[人员],0),3),\"\")","v":""},{"$f":"IFERROR(INDEX(tblData[],MATCH(F$5+$B21&ShowName,tblData[日期和时间]&tblData[人员],0),3),\"\")","v":"烟火表演"},{"$f":"IFERROR(INDEX(tblData[],MATCH(G$5+$B21&ShowName,tblData[日期和时间]&tblData[人员],0),3),\"\")","v":""},{"$f":"IFERROR(INDEX(tblData[],MATCH(H$5+$B21&ShowName,tblData[日期和时间]&tblData[人员],0),3),\"\")","v":""},{"$f":"IFERROR(INDEX(tblData[],MATCH(I$5+$B21&ShowName,tblData[日期和时间]&tblData[人员],0),3),\"\")","v":""}]
[null,"21:00:00",{"$f":"IFERROR(INDEX(tblData[],MATCH(C$5+$B22&ShowName,tblData[日期和时间]&tblData[人员],0),3),\"\")","v":""},{"$f":"IFERROR(INDEX(tblData[],MATCH(D$5+$B22&ShowName,tblData[日期和时间]&tblData[人员],0),3),\"\")","v":""},{"$f":"IFERROR(INDEX(tblData[],MATCH(E$5+$B22&ShowName,tblData[日期和时间]&tblData[人员],0),3),\"\")","v":""},{"$f":"IFERROR(INDEX(tblData[],MATCH(F$5+$B22&ShowName,tblData[日期和时间]&tblData[人员],0),3),\"\")","v":""},{"$f":"IFERROR(INDEX(tblData[],MATCH(G$5+$B22&ShowName,tblData[日期和时间]&tblData[人员],0),3),\"\")","v":""},{"$f":"IFERROR(INDEX(tblData[],MATCH(H$5+$B22&ShowName,tblData[日期和时间]&tblData[人员],0),3),\"\")","v":""},{"$f":"IFERROR(INDEX(tblData[],MATCH(I$5+$B22&ShowName,tblData[日期和时间]&tblData[人员],0),3),\"\")","v":""}]
[null,"22:00:00",{"$f":"IFERROR(INDEX(tblData[],MATCH(C$5+$B23&ShowName,tblData[日期和时间]&tblData[人员],0),3),\"\")","v":""},{"$f":"IFERROR(INDEX(tblData[],MATCH(D$5+$B23&ShowName,tblData[日期和时间]&tblData[人员],0),3),\"\")","v":""},{"$f":"IFERROR(INDEX(tblData[],MATCH(E$5+$B23&ShowName,tblData[日期和时间]&tblData[人员],0),3),\"\")","v":""},{"$f":"IFERROR(INDEX(tblData[],MATCH(F$5+$B23&ShowName,tblData[日期和时间]&tblData[人员],0),3),\"\")","v":""},{"$f":"IFERROR(INDEX(tblData[],MATCH(G$5+$B23&ShowName,tblData[日期和时间]&tblData[人员],0),3),\"\")","v":""},{"$f":"IFERROR(INDEX(tblData[],MATCH(H$5+$B23&ShowName,tblData[日期和时间]&tblData[人员],0),3),\"\")","v":""},{"$f":"IFERROR(INDEX(tblData[],MATCH(I$5+$B23&ShowName,tblData[日期和时间]&tblData[人员],0),3),\"\")","v":""}]

{"sheet":"数据输入","index":1,"n_rows":14,"n_cols":4,"rows_kept":14}
[null,"数据输入"]
[]
[null,"日期和时间","人员","任务"]
[null,"2012-07-02T08:00:00","丽秋","看医生"]
[null,"2012-07-02T18:00:00","道明","吃药"]
[null,"2012-07-02T18:30:00","道明","与晓峰共进晚餐"]
[null,"2012-07-02T20:00:00","道明","与家人一起看电影"]
[null,"2012-07-03T16:00:00","道明","出发去船舱"]
[null,"2012-07-04T10:00:00","道明","闹市区游行"]
[null,"2012-07-05T20:00:00","道明","烟火表演"]
[null,"2012-07-06T11:00:00","道明","和家人一起烤肉"]
[null,"2012-07-07","道明","社区郊游"]
[null,"2012-07-08T17:00:00","道明","回家"]
[null,"2012-07-02T10:00:00","丽秋","钢琴课"]

{"sheet":"Name Lookup","index":2,"n_rows":132,"n_cols":2,"rows_kept":132,"hidden":true,"merged":[[0,0,0,1]]}
["This sheet populates the drop down list of names on the Schedule sheet in cell H3.  Any changes made to this sheet could result in an error."]
["UNIQUE NAME","ROW NUMBER"]
[{"$f":"IFERROR(INDEX(WhoField,MATCH(0,COUNTIF($A$2:A2,WhoField),0)),\"\")","v":"丽秋"},{"$f":"IF(A3=\"\",\"\",ROW())","v":3}]
[{"$f":"IFERROR(INDEX(WhoField,MATCH(0,COUNTIF($A$2:A3,WhoField),0)),\"\")","v":"道明"},{"$f":"IF(A4=\"\",\"\",ROW())","v":4}]
[{"$f":"IFERROR(INDEX(WhoField,MATCH(0,COUNTIF($A$2:A4,WhoField),0)),\"\")","v":""},""]
[{"$f":"IFERROR(INDEX(WhoField,MATCH(0,COUNTIF($A$2:A5,WhoField),0)),\"\")","v":""},""]
[{"$f":"IFERROR(INDEX(WhoField,MATCH(0,COUNTIF($A$2:A6,WhoField),0)),\"\")","v":""},""]
[{"$f":"IFERROR(INDEX(WhoField,MATCH(0,COUNTIF($A$2:A7,WhoField),0)),\"\")","v":""},""]
[{"$f":"IFERROR(INDEX(WhoField,MATCH(0,COUNTIF($A$2:A8,WhoField),0)),\"\")","v":""},""]
[{"$f":"IFERROR(INDEX(WhoField,MATCH(0,COUNTIF($A$2:A9,WhoField),0)),\"\")","v":""},""]
[{"$f":"IFERROR(INDEX(WhoField,MATCH(0,COUNTIF($A$2:A10,WhoField),0)),\"\")","v":""},""]
[{"$f":"IFERROR(INDEX(WhoField,MATCH(0,COUNTIF($A$2:A11,WhoField),0)),\"\")","v":""},""]
[{"$f":"IFERROR(INDEX(WhoField,MATCH(0,COUNTIF($A$2:A12,WhoField),0)),\"\")","v":""},""]
[{"$f":"IFERROR(INDEX(WhoField,MATCH(0,COUNTIF($A$2:A13,WhoField),0)),\"\")","v":""},""]
[{"$f":"IFERROR(INDEX(WhoField,MATCH(0,COUNTIF($A$2:A14,WhoField),0)),\"\")","v":""},""]
[{"$f":"IFERROR(INDEX(WhoField,MATCH(0,COUNTIF($A$2:A15,WhoField),0)),\"\")","v":""},""]
[{"$f":"IFERROR(INDEX(WhoField,MATCH(0,COUNTIF($A$2:A16,WhoField),0)),\"\")","v":""},""]
[{"$f":"IFERROR(INDEX(WhoField,MATCH(0,COUNTIF($A$2:A17,WhoField),0)),\"\")","v":""},""]
[{"$f":"IFERROR(INDEX(WhoField,MATCH(0,COUNTIF($A$2:A18,WhoField),0)),\"\")","v":""},""]
[{"$f":"IFERROR(INDEX(WhoField,MATCH(0,COUNTIF($A$2:A19,WhoField),0)),\"\")","v":""},""]
[{"$f":"IFERROR(INDEX(WhoField,MATCH(0,COUNTIF($A$2:A20,WhoField),0)),\"\")","v":""},""]
[{"$f":"IFERROR(INDEX(WhoField,MATCH(0,COUNTIF($A$2:A21,WhoField),0)),\"\")","v":""},""]
[{"$f":"IFERROR(INDEX(WhoField,MATCH(0,COUNTIF($A$2:A22,WhoField),0)),\"\")","v":""},""]
[{"$f":"IFERROR(INDEX(WhoField,MATCH(0,COUNTIF($A$2:A23,WhoField),0)),\"\")","v":""},""]
[{"$f":"IFERROR(INDEX(WhoField,MATCH(0,COUNTIF($A$2:A24,WhoField),0)),\"\")","v":""},""]
[{"$f":"IFERROR(INDEX(WhoField,MATCH(0,COUNTIF($A$2:A25,WhoField),0)),\"\")","v":""},""]
[{"$f":"IFERROR(INDEX(WhoField,MATCH(0,COUNTIF($A$2:A26,WhoField),0)),\"\")","v":""},""]
[{"$f":"IFERROR(INDEX(WhoField,MATCH(0,COUNTIF($A$2:A27,WhoField),0)),\"\")","v":""},""]
[{"$f":"IFERROR(INDEX(WhoField,MATCH(0,COUNTIF($A$2:A28,WhoField),0)),\"\")","v":""},""]
[{"$f":"IFERROR(INDEX(WhoField,MATCH(0,COUNTIF($A$2:A29,WhoField),0)),\"\")","v":""},""]
[{"$f":"IFERROR(INDEX(WhoField,MATCH(0,COUNTIF($A$2:A30,WhoField),0)),\"\")","v":""},""]
[{"$f":"IFERROR(INDEX(WhoField,MATCH(0,COUNTIF($A$2:A31,WhoField),0)),\"\")","v":""},""]
[{"$f":"IFERROR(INDEX(WhoField,MATCH(0,COUNTIF($A$2:A32,WhoField),0)),\"\")","v":""},""]
[{"$f":"IFERROR(INDEX(WhoField,MATCH(0,COUNTIF($A$2:A33,WhoField),0)),\"\")","v":""},""]
[{"$f":"IFERROR(INDEX(WhoField,MATCH(0,COUNTIF($A$2:A34,WhoField),0)),\"\")","v":""},""]
[{"$f":"IFERROR(INDEX(WhoField,MATCH(0,COUNTIF($A$2:A35,WhoField),0)),\"\")","v":""},""]
[{"$f":"IFERROR(INDEX(WhoField,MATCH(0,COUNTIF($A$2:A36,WhoField),0)),\"\")","v":""},""]
[{"$f":"IFERROR(INDEX(WhoField,MATCH(0,COUNTIF($A$2:A37,WhoField),0)),\"\")","v":""},""]
[{"$f":"IFERROR(INDEX(WhoField,MATCH(0,COUNTIF($A$2:A38,WhoField),0)),\"\")","v":""},""]
[{"$f":"IFERROR(INDEX(WhoField,MATCH(0,COUNTIF($A$2:A39,WhoField),0)),\"\")","v":""},""]
[{"$f":"IFERROR(INDEX(WhoField,MATCH(0,COUNTIF($A$2:A40,WhoField),0)),\"\")","v":""},""]
[{"$f":"IFERROR(INDEX(WhoField,MATCH(0,COUNTIF($A$2:A41,WhoField),0)),\"\")","v":""},""]
[{"$f":"IFERROR(INDEX(WhoField,MATCH(0,COUNTIF($A$2:A42,WhoField),0)),\"\")","v":""},""]
[{"$f":"IFERROR(INDEX(WhoField,MATCH(0,COUNTIF($A$2:A43,WhoField),0)),\"\")","v":""},""]
[{"$f":"IFERROR(INDEX(WhoField,MATCH(0,COUNTIF($A$2:A44,WhoField),0)),\"\")","v":""},""]
[{"$f":"IFERROR(INDEX(WhoField,MATCH(0,COUNTIF($A$2:A45,WhoField),0)),\"\")","v":""},""]
[{"$f":"IFERROR(INDEX(WhoField,MATCH(0,COUNTIF($A$2:A46,WhoField),0)),\"\")","v":""},""]
[{"$f":"IFERROR(INDEX(WhoField,MATCH(0,COUNTIF($A$2:A47,WhoField),0)),\"\")","v":""},""]
[{"$f":"IFERROR(INDEX(WhoField,MATCH(0,COUNTIF($A$2:A48,WhoField),0)),\"\")","v":""},""]
[{"$f":"IFERROR(INDEX(WhoField,MATCH(0,COUNTIF($A$2:A49,WhoField),0)),\"\")","v":""},""]
[{"$f":"IFERROR(INDEX(WhoField,MATCH(0,COUNTIF($A$2:A50,WhoField),0)),\"\")","v":""},""]
[{"$f":"IFERROR(INDEX(WhoField,MATCH(0,COUNTIF($A$2:A51,WhoField),0)),\"\")","v":""},""]
[{"$f":"IFERROR(INDEX(WhoField,MATCH(0,COUNTIF($A$2:A52,WhoField),0)),\"\")","v":""},""]
[{"$f":"IFERROR(INDEX(WhoField,MATCH(0,COUNTIF($A$2:A53,WhoField),0)),\"\")","v":""},""]
[{"$f":"IFERROR(INDEX(WhoField,MATCH(0,COUNTIF($A$2:A54,WhoField),0)),\"\")","v":""},""]
[{"$f":"IFERROR(INDEX(WhoField,MATCH(0,COUNTIF($A$2:A55,WhoField),0)),\"\")","v":""},""]
[{"$f":"IFERROR(INDEX(WhoField,MATCH(0,COUNTIF($A$2:A56,WhoField),0)),\"\")","v":""},""]
[{"$f":"IFERROR(INDEX(WhoField,MATCH(0,COUNTIF($A$2:A57,WhoField),0)),\"\")","v":""},""]
[{"$f":"IFERROR(INDEX(WhoField,MATCH(0,COUNTIF($A$2:A58,WhoField),0)),\"\")","v":""},""]
[{"$f":"IFERROR(INDEX(WhoField,MATCH(0,COUNTIF($A$2:A59,WhoField),0)),\"\")","v":""},""]
[{"$f":"IFERROR(INDEX(WhoField,MATCH(0,COUNTIF($A$2:A60,WhoField),0)),\"\")","v":""},""]
[{"$f":"IFERROR(INDEX(WhoField,MATCH(0,COUNTIF($A$2:A61,WhoField),0)),\"\")","v":""},""]
[{"$f":"IFERROR(INDEX(WhoField,MATCH(0,COUNTIF($A$2:A62,WhoField),0)),\"\")","v":""},""]
[{"$f":"IFERROR(INDEX(WhoField,MATCH(0,COUNTIF($A$2:A63,WhoField),0)),\"\")","v":""},""]
[{"$f":"IFERROR(INDEX(WhoField,MATCH(0,COUNTIF($A$2:A64,WhoField),0)),\"\")","v":""},""]
[{"$f":"IFERROR(INDEX(WhoField,MATCH(0,COUNTIF($A$2:A65,WhoField),0)),\"\")","v":""},""]
[{"$f":"IFERROR(INDEX(WhoField,MATCH(0,COUNTIF($A$2:A66,WhoField),0)),\"\")","v":""},""]
[{"$f":"IFERROR(INDEX(WhoField,MATCH(0,COUNTIF($A$2:A67,WhoField),0)),\"\")","v":""},{"$f":"IF(A68=\"\",\"\",ROW())","v":""}]
[{"$f":"IFERROR(INDEX(WhoField,MATCH(0,COUNTIF($A$2:A68,WhoField),0)),\"\")","v":""},""]
[{"$f":"IFERROR(INDEX(WhoField,MATCH(0,COUNTIF($A$2:A69,WhoField),0)),\"\")","v":""},""]
[{"$f":"IFERROR(INDEX(WhoField,MATCH(0,COUNTIF($A$2:A70,WhoField),0)),\"\")","v":""},""]
[{"$f":"IFERROR(INDEX(WhoField,MATCH(0,COUNTIF($A$2:A71,WhoField),0)),\"\")","v":""},""]
[{"$f":"IFERROR(INDEX(WhoField,MATCH(0,COUNTIF($A$2:A72,WhoField),0)),\"\")","v":""},""]
[{"$f":"IFERROR(INDEX(WhoField,MATCH(0,COUNTIF($A$2:A73,WhoField),0)),\"\")","v":""},""]
[{"$f":"IFERROR(INDEX(WhoField,MATCH(0,COUNTIF($A$2:A74,WhoField),0)),\"\")","v":""},""]
[{"$f":"IFERROR(INDEX(WhoField,MATCH(0,COUNTIF($A$2:A75,WhoField),0)),\"\")","v":""},""]
[{"$f":"IFERROR(INDEX(WhoField,MATCH(0,COUNTIF($A$2:A76,WhoField),0)),\"\")","v":""},""]
[{"$f":"IFERROR(INDEX(WhoField,MATCH(0,COUNTIF($A$2:A77,WhoField),0)),\"\")","v":""},""]
[{"$f":"IFERROR(INDEX(WhoField,MATCH(0,COUNTIF($A$2:A78,WhoField),0)),\"\")","v":""},""]
[{"$f":"IFERROR(INDEX(WhoField,MATCH(0,COUNTIF($A$2:A79,WhoField),0)),\"\")","v":""},""]
[{"$f":"IFERROR(INDEX(WhoField,MATCH(0,COUNTIF($A$2:A80,WhoField),0)),\"\")","v":""},""]
[{"$f":"IFERROR(INDEX(WhoField,MATCH(0,COUNTIF($A$2:A81,WhoField),0)),\"\")","v":""},""]
[{"$f":"IFERROR(INDEX(WhoField,MATCH(0,COUNTIF($A$2:A82,WhoField),0)),\"\")","v":""},""]
[{"$f":"IFERROR(INDEX(WhoField,MATCH(0,COUNTIF($A$2:A83,WhoField),0)),\"\")","v":""},""]
[{"$f":"IFERROR(INDEX(WhoField,MATCH(0,COUNTIF($A$2:A84,WhoField),0)),\"\")","v":""},""]
[{"$f":"IFERROR(INDEX(WhoField,MATCH(0,COUNTIF($A$2:A85,WhoField),0)),\"\")","v":""},""]
[{"$f":"IFERROR(INDEX(WhoField,MATCH(0,COUNTIF($A$2:A86,WhoField),0)),\"\")","v":""},""]
[{"$f":"IFERROR(INDEX(WhoField,MATCH(0,COUNTIF($A$2:A87,WhoField),0)),\"\")","v":""},""]
[{"$f":"IFERROR(INDEX(WhoField,MATCH(0,COUNTIF($A$2:A88,WhoField),0)),\"\")","v":""},""]
[{"$f":"IFERROR(INDEX(WhoField,MATCH(0,COUNTIF($A$2:A89,WhoField),0)),\"\")","v":""},""]
[{"$f":"IFERROR(INDEX(WhoField,MATCH(0,COUNTIF($A$2:A90,WhoField),0)),\"\")","v":""},""]
[{"$f":"IFERROR(INDEX(WhoField,MATCH(0,COUNTIF($A$2:A91,WhoField),0)),\"\")","v":""},""]
[{"$f":"IFERROR(INDEX(WhoField,MATCH(0,COUNTIF($A$2:A92,WhoField),0)),\"\")","v":""},""]
[{"$f":"IFERROR(INDEX(WhoField,MATCH(0,COUNTIF($A$2:A93,WhoField),0)),\"\")","v":""},""]
[{"$f":"IFERROR(INDEX(WhoField,MATCH(0,COUNTIF($A$2:A94,WhoField),0)),\"\")","v":""},""]
[{"$f":"IFERROR(INDEX(WhoField,MATCH(0,COUNTIF($A$2:A95,WhoField),0)),\"\")","v":""},""]
[{"$f":"IFERROR(INDEX(WhoField,MATCH(0,COUNTIF($A$2:A96,WhoField),0)),\"\")","v":""},""]
[{"$f":"IFERROR(INDEX(WhoField,MATCH(0,COUNTIF($A$2:A97,WhoField),0)),\"\")","v":""},""]
[{"$f":"IFERROR(INDEX(WhoField,MATCH(0,COUNTIF($A$2:A98,WhoField),0)),\"\")","v":""},""]
[{"$f":"IFERROR(INDEX(WhoField,MATCH(0,COUNTIF($A$2:A99,WhoField),0)),\"\")","v":""},""]
[{"$f":"IFERROR(INDEX(WhoField,MATCH(0,COUNTIF($A$2:A100,WhoField),0)),\"\")","v":""},""]
[{"$f":"IFERROR(INDEX(WhoField,MATCH(0,COUNTIF($A$2:A101,WhoField),0)),\"\")","v":""},""]
[{"$f":"IFERROR(INDEX(WhoField,MATCH(0,COUNTIF($A$2:A102,WhoField),0)),\"\")","v":""},""]
[{"$f":"IFERROR(INDEX(WhoField,MATCH(0,COUNTIF($A$2:A103,WhoField),0)),\"\")","v":""},""]
[{"$f":"IFERROR(INDEX(WhoField,MATCH(0,COUNTIF($A$2:A104,WhoField),0)),\"\")","v":""},""]
[{"$f":"IFERROR(INDEX(WhoField,MATCH(0,COUNTIF($A$2:A105,WhoField),0)),\"\")","v":""},""]
[{"$f":"IFERROR(INDEX(WhoField,MATCH(0,COUNTIF($A$2:A106,WhoField),0)),\"\")","v":""},""]
[{"$f":"IFERROR(INDEX(WhoField,MATCH(0,COUNTIF($A$2:A107,WhoField),0)),\"\")","v":""},""]
[{"$f":"IFERROR(INDEX(WhoField,MATCH(0,COUNTIF($A$2:A108,WhoField),0)),\"\")","v":""},""]
[{"$f":"IFERROR(INDEX(WhoField,MATCH(0,COUNTIF($A$2:A109,WhoField),0)),\"\")","v":""},""]
[{"$f":"IFERROR(INDEX(WhoField,MATCH(0,COUNTIF($A$2:A110,WhoField),0)),\"\")","v":""},""]
[{"$f":"IFERROR(INDEX(WhoField,MATCH(0,COUNTIF($A$2:A111,WhoField),0)),\"\")","v":""},""]
[{"$f":"IFERROR(INDEX(WhoField,MATCH(0,COUNTIF($A$2:A112,WhoField),0)),\"\")","v":""},""]
[{"$f":"IFERROR(INDEX(WhoField,MATCH(0,COUNTIF($A$2:A113,WhoField),0)),\"\")","v":""},""]
[{"$f":"IFERROR(INDEX(WhoField,MATCH(0,COUNTIF($A$2:A114,WhoField),0)),\"\")","v":""},""]
[{"$f":"IFERROR(INDEX(WhoField,MATCH(0,COUNTIF($A$2:A115,WhoField),0)),\"\")","v":""},""]
[{"$f":"IFERROR(INDEX(WhoField,MATCH(0,COUNTIF($A$2:A116,WhoField),0)),\"\")","v":""},""]
[{"$f":"IFERROR(INDEX(WhoField,MATCH(0,COUNTIF($A$2:A117,WhoField),0)),\"\")","v":""},""]
[{"$f":"IFERROR(INDEX(WhoField,MATCH(0,COUNTIF($A$2:A118,WhoField),0)),\"\")","v":""},""]
[{"$f":"IFERROR(INDEX(WhoField,MATCH(0,COUNTIF($A$2:A119,WhoField),0)),\"\")","v":""},""]
[{"$f":"IFERROR(INDEX(WhoField,MATCH(0,COUNTIF($A$2:A120,WhoField),0)),\"\")","v":""},""]
[{"$f":"IFERROR(INDEX(WhoField,MATCH(0,COUNTIF($A$2:A121,WhoField),0)),\"\")","v":""},""]
[{"$f":"IFERROR(INDEX(WhoField,MATCH(0,COUNTIF($A$2:A122,WhoField),0)),\"\")","v":""},""]
[{"$f":"IFERROR(INDEX(WhoField,MATCH(0,COUNTIF($A$2:A123,WhoField),0)),\"\")","v":""},""]
[{"$f":"IFERROR(INDEX(WhoField,MATCH(0,COUNTIF($A$2:A124,WhoField),0)),\"\")","v":""},""]
[{"$f":"IFERROR(INDEX(WhoField,MATCH(0,COUNTIF($A$2:A125,WhoField),0)),\"\")","v":""},""]
[{"$f":"IFERROR(INDEX(WhoField,MATCH(0,COUNTIF($A$2:A126,WhoField),0)),\"\")","v":""},""]
[{"$f":"IFERROR(INDEX(WhoField,MATCH(0,COUNTIF($A$2:A127,WhoField),0)),\"\")","v":""},""]
[{"$f":"IFERROR(INDEX(WhoField,MATCH(0,COUNTIF($A$2:A128,WhoField),0)),\"\")","v":""},""]
[{"$f":"IFERROR(INDEX(WhoField,MATCH(0,COUNTIF($A$2:A129,WhoField),0)),\"\")","v":""},""]
[{"$f":"IFERROR(INDEX(WhoField,MATCH(0,COUNTIF($A$2:A130,WhoField),0)),\"\")","v":""},""]
[{"$f":"IFERROR(INDEX(WhoField,MATCH(0,COUNTIF($A$2:A131,WhoField),0)),\"\")","v":""},{"$f":"IF(A132=\"\",\"\",ROW())","v":""}]